bitfinex/quotes_ETHUSD_20251021
["timestamp","ask_amount","ask_price","bid_price","bid_amount"]
[1761053179869,3.331,3888.7,3888.5,0.4317]
[1761053180063,0.001,3889.1,3888.5,0.4317]
[1761053180064,3.331,3888.6,3888.5,0.4317]
[1761053180271,3.331,3888.9,3888.5,0.4317]
[1761053180502,3.331,3888.9,3888.6,0.02571619]
[1761053180668,3.331,3888.9,3888.5,0.4317]
[1761053184023,3.331,3888.9,3888.8,0.128]
[1761053186499,6.52680219,3888.9,3888.5,0.002]
[1761053187021,6.52682312,3888.9,3888.5,0.002]
[1761053187531,5.90244215,3888.9,3888.5,0.002]
[1761053189926,3.331,3888.9,3888.5,0.002]
[1761053190737,6.2429433,3888.9,3888.5,0.002]
[1761053190928,5.9024433,3888.9,3888.5,0.002]
[1761053191317,3.331,3888.9,3888.5,0.002]
[1761053191520,0.001,3889.1,3888.5,0.002]
[1761053191748,3.33,3889.0,3888.5,0.002]
[1761053192251,3.33,3889.0,3888.5,0.4503]
[1761053192729,2.57229694,3889.1,3888.5,0.4503]
[1761053192928,5.90136493,3889.0,3888.5,0.002]
[1761053193328,2.57143053,3888.9,3888.5,0.002]
[1761053194646,3.329,3888.8,3888.5,0.002]
[1761053195431,2.5716196,3888.6,3888.5,0.002]
[1761053195932,2.9121196,3888.6,3888.5,0.002]
[1761053196133,3.79338538,3888.6,3888.5,0.002]
[1761053197427,0.54949539,3889.1,3888.5,0.002]
[1761053197627,3.457,3889.0,3888.5,0.002]
[1761053198058,3.457,3889.0,3888.5,0.4503]
[1761053198358,6.02836522,3889.0,3888.5,0.002]
[1761053198762,0.3405,3888.9,3888.5,0.002]
[1761053198932,2.57154992,3888.8,3888.5,0.002]
[1761053199133,0.63700499,3888.8,3888.5,0.002]
[1761053199335,3.329,3888.7,3888.5,0.002]
[1761053199840,0.3405,3888.6,3888.5,0.002]
[1761053200031,2.9121196,3888.6,3888.5,0.002]
[1761053200527,5.18568497,3888.6,3888.5,0.002]
[1761053200744,2.61406537,3888.6,3888.5,0.002]
[1761053200938,2.57945669,3888.6,3888.5,0.002]
[1761053201161,5.90745669,3888.6,3888.5,0.002]
[1761053202438,3.328,3888.6,3888.5,0.002]
[1761053203173,5.8996196,3888.6,3888.5,0.002]
[1761053203373,6.2401196,3888.6,3888.5,0.002]
[1761053204180,6.78649676,3888.6,3888.5,0.002]
[1761053207143,10.81049676,3888.6,3888.5,0.002]
[1761053207473,9.9211814,3888.6,3888.5,0.002]
[1761053208038,13.2377064,3888.6,3888.5,0.002]
[1761053208380,12.0385274,3888.6,3888.5,0.002]
[1761053210283,9.9211814,3888.6,3888.5,0.002]
[1761053213316,15.3820014,3888.6,3888.5,0.002]
[1761053215297,15.50913158,3888.6,3888.5,0.002]
[1761053215498,27.63051458,3888.6,3888.5,0.002]
[1761053215698,23.39699458,3888.6,3888.5,0.002]
[1761053216513,24.50710457,3888.6,3888.5,0.002]
[1761053216918,24.30692357,3888.6,3888.5,0.002]
[1761053217215,20.97992357,3888.6,3888.5,0.002]
[1761053217418,24.80607657,3888.6,3888.5,0.002]
[1761053217792,24.09417257,3888.6,3888.5,0.002]
[1761053218504,24.11992357,3888.6,3888.5,0.002]
[1761053218810,33.52514286,3888.6,3888.5,0.002]
[1761053218976,36.85114286,3888.6,3888.5,0.002]
[1761053219182,33.52514286,3888.6,3888.5,0.002]
[1761053219412,24.36976986,3888.6,3888.5,0.002]
[1761053219704,37.85063486,3888.6,3888.5,0.002]
[1761053220419,31.29620874,3888.5,3888.4,1e-08]
[1761053220578,31.29620874,3888.5,3888.1,0.002]
[1761053220579,15.82429416,3888.2,3888.1,0.002]
[1761053220783,33.10986831,3888.2,3888.1,0.002]
[1761053220999,33.55352317,3888.2,3888.1,0.002]
[1761053221317,36.14557335,3888.2,3888.1,0.002]
[1761053221487,28.45472935,3888.2,3888.1,0.002]
[1761053221716,28.94771483,3888.2,3888.1,0.002]
[1761053221915,26.81719172,3888.2,3888.1,0.002]
[1761053222430,24.25788372,3888.2,3888.1,0.002]
[1761053222640,33.83509372,3888.2,3888.1,0.002]
[1761053223667,35.52522572,3888.2,3888.1,0.002]
[1761053223841,42.75517794,3888.2,3888.1,0.002]
[1761053224157,36.03210572,3888.2,3888.1,0.002]
[1761053224343,36.71344029,3888.2,3888.1,0.002]
[1761053224537,28.41353229,3888.2,3888.1,0.002]
[1761053224742,24.25688372,3888.2,3888.1,0.002]
[1761053224913,26.66058337,3888.2,3888.1,0.002]
[1761053225114,26.25713172,3888.2,3888.1,0.002]
[1761053225314,26.59763172,3888.2,3888.1,0.002]
[1761053225543,34.00203851,3888.2,3888.1,0.002]
[1761053225728,44.29350594,3888.2,3888.1,0.002]
[1761053226028,44.80038594,3888.2,3888.1,0.002]
[1761053226515,46.24877154,3888.2,3888.1,0.002]
[1761053226736,50.31086929,3888.2,3888.1,0.002]
[1761053226936,13.22509053,3888.2,3888.1,0.002]
[1761053227133,12.87326132,3888.2,3888.1,0.002]
[1761053227342,17.55095132,3888.2,3888.1,0.002]
[1761053227542,23.89251032,3888.2,3888.1,0.002]
[1761053227746,28.07244832,3888.2,3888.1,0.002]
[1761053227963,22.67082032,3888.2,3888.1,0.002]
[1761053228340,38.30729484,3888.2,3888.1,0.002]
[1761053228550,34.77875484,3888.2,3888.1,0.002]
[1761053229116,35.96697768,3888.2,3888.1,0.002]
[1761053229411,40.65623584,3888.2,3888.1,0.002]
[1761053229811,26.19219274,3888.2,3888.1,0.002]
[1761053230045,23.31641374,3888.2,3888.1,0.002]
[1761053230318,17.19735774,3888.2,3888.1,0.002]
[1761053230550,26.75494684,3888.2,3888.1,0.002]
[1761053231016,26.14513984,3888.2,3888.1,0.002]
[1761053231545,29.82974484,3888.2,3888.1,0.002]
[1761053231750,30.85188674,3888.2,3888.1,0.002]
[1761053232117,22.60680674,3888.2,3888.1,0.002]
[1761053232316,25.93180674,3888.2,3888.1,0.002]
[1761053232557,25.01052274,3888.2,3888.1,0.002]
[1761053232915,21.34502274,3888.2,3888.1,0.002]
[1761053233124,21.76602174,3888.2,3888.1,0.002]
[1761053233320,22.10652174,3888.2,3888.1,0.002]
[1761053233538,28.19131874,3888.2,3888.1,0.002]
[1761053233720,23.60937574,3888.2,3888.1,0.002]
[1761053233935,22.34301274,3888.2,3888.1,0.002]
[1761053234167,16.51471584,3888.2,3888.1,0.002]
[1761053234321,20.97400584,3888.2,3888.1,0.002]
[1761053234522,20.98664384,3888.2,3888.1,0.002]
[1761053234833,20.52828574,3888.2,3888.1,0.002]
[1761053235223,16.51471584,3888.2,3888.1,0.002]
[1761053235425,16.51571584,3888.2,3888.1,0.002]
[1761053236261,25.20926274,3888.2,3888.1,0.002]
[1761053236440,17.19735774,3888.2,3888.1,0.002]
[1761053236857,16.51571584,3888.2,3888.1,0.002]
[1761053237934,16.51471584,3888.2,3888.1,0.002]
[1761053238154,13.19071584,3888.2,3888.1,0.002]
[1761053238470,16.51417409,3888.2,3888.1,0.002]
[1761053238645,16.91759127,3888.2,3888.1,0.002]
[1761053238841,16.85467409,3888.2,3888.1,0.002]
[1761053239463,22.65596309,3888.2,3888.1,0.002]
[1761053239768,16.51417409,3888.2,3888.1,0.002]
[1761053243864,16.85467409,3888.2,3888.1,0.002]
[1761053244066,17.19646836,3888.2,3888.1,0.002]
[1761053246670,33.08225736,3888.2,3888.1,0.002]
[1761053246974,32.74046309,3888.2,3888.1,0.002]
[1761053247373,30.48827809,3888.2,3888.1,0.002]
[1761053247672,28.09950909,3888.2,3888.1,0.002]
[1761053247856,26.30023209,3888.2,3888.1,0.002]
[1761053249016,21.18097209,3888.2,3888.1,0.002]
[1761053249881,25.67987309,3888.2,3888.1,0.002]
[1761053250193,25.33937309,3888.2,3888.1,0.002]
[1761053250392,19.85303441,3888.2,3888.1,0.002]
[1761053250603,19.85303441,3888.2,3888.1,8.743359]
[1761053250604,1.22917987,3888.2,3888.1,8.743359]
[1761053250801,0.001,3888.4,3888.1,8.743359]
[1761053250988,0.001,3888.4,3888.2,0.02571884]
[1761053251389,0.001,3888.4,3888.2,2.26059884]
[1761053251698,0.001,3888.4,3888.3,1.58602396]
[1761053253767,0.001,3889.1,3888.4,0.50688]
[1761053253971,0.001,3889.1,3888.3,3.31402396]
[1761053253972,0.001,3889.1,3888.7,10.304439]
[1761053255609,0.001,3889.1,3888.8,2.23488]
[1761053255811,0.001,3889.1,3888.9,0.02571421]
[1761053255982,0.001,3889.1,3889.0,1.30703097]
[1761053256904,0.001,3889.5,3889.1,0.50688]
[1761053257102,0.001,3889.5,3889.1,10.33015188]
[1761053257302,0.001,3889.5,3889.3,0.50688]
[1761053257500,0.001,3889.5,3889.3,6.63501734]
[1761053257700,0.001,3889.5,3889.3,6.60930578]
[1761053258509,0.001,3889.6,3889.5,0.50688]
[1761053258709,0.001,3889.6,3889.5,10.33014924]
[1761053258888,0.001,3890.0,3889.7,0.50688]
[1761053259081,0.001,3890.4,3889.7,1.33273989]
[1761053259332,0.001,3890.4,3890.1,10.304439]
[1761053259616,0.001,3890.4,3890.1,13.624439]
[1761053260696,0.001,3890.4,3890.1,24.78100143]
[1761053260887,0.001,3890.4,3890.1,24.88401469]
[1761053261089,0.001,3890.4,3890.1,25.93744047]
[1761053263220,0.001,3890.4,3890.1,25.80944047]
[1761053266997,0.001,3890.4,3890.1,6.10142578]
[1761053267197,0.001,3890.4,3890.1,5.048]
[1761053267740,0.001,3890.4,3890.1,5.55488]
[1761053268108,0.001,3890.4,3890.1,5.048]
[1761053268298,0.001,3890.4,3890.1,3.32]
[1761053269054,0.4755,3890.2,3890.1,3.32]
[1761053270211,0.4755,3890.2,3888.8,1.74]
[1761053270416,0.4755,3890.2,3888.9,3.492]
[1761053270973,0.4755,3890.2,3888.8,0.002]
[1761053271182,2.57073639,3890.0,3888.8,0.002]
[1761053271347,0.4755,3890.2,3888.8,0.002]
[1761053271679,0.001,3890.2,3888.9,0.50688]
[1761053271983,0.001,3890.2,3888.8,0.02771487]
[1761053271984,0.4745,3890.1,3889.1,0.50688]
[1761053272152,0.4745,3890.1,3889.2,0.30647158]
[1761053272568,0.4745,3890.1,3889.2,0.28075936]
[1761053273275,0.4745,3890.1,3889.9,0.128]
[1761053273463,0.001,3890.2,3889.9,0.128]
[1761053273651,0.4745,3890.1,3889.3,0.50688]
[1761053273972,0.4745,3890.1,3890.0,0.128]
[1761053274949,0.4745,3890.1,3889.8,0.128]
[1761053275369,2.80386017,3889.9,3889.8,0.128]
[1761053275532,3.27836017,3889.9,3889.8,0.128]
[1761053275950,3.27836017,3889.9,3889.5,0.128]
[1761053276153,0.4745,3889.8,3889.5,0.128]
[1761053276879,2.57095845,3889.6,3889.5,0.128]
[1761053277056,2.57095845,3889.6,3889.0,2.275]
[1761053277238,3.04553998,3889.5,3889.0,2.275]
[1761053277567,2.57109806,3889.4,3888.8,0.002]
[1761053277748,0.2331,3888.9,3888.8,0.002]
[1761053278161,0.7076,3888.9,3888.8,0.002]
[1761053279395,3.27902122,3888.9,3888.8,0.002]
[1761053279787,3.86404608,3888.9,3888.8,0.002]
[1761053280507,2.57168574,3888.5,3888.4,0.002]
[1761053280786,3.04618574,3888.5,3888.4,0.002]
[1761053283496,18.30286574,3888.5,3888.4,0.002]
[1761053283860,18.30286574,3888.5,3885.7,0.0023]
[1761053283861,2.57281336,3886.8,3883.6,2.58753596]
[1761053284176,0.6521,3886.7,3885.3,0.52118]
[1761053284364,3.22501829,3886.7,3885.3,0.0143]
[1761053284568,2.79501829,3886.7,3885.3,0.0143]
[1761053284766,0.43,3886.6,3885.3,0.52118]
[1761053284969,0.43,3886.6,3885.5,0.50688]
[1761053286209,0.43,3886.6,3885.5,0.52118]
[1761053286422,0.43,3886.6,3885.5,0.50688]
[1761053286718,0.43,3886.6,3885.4,0.159818]
[1761053286719,2.57300913,3886.5,3885.4,0.159818]
[1761053287183,0.43,3886.4,3886.1,0.128]
[1761053288609,3.00309266,3886.4,3886.1,0.128]
[1761053288801,0.43,3886.4,3886.1,0.128]
[1761053288997,0.43,3886.3,3886.1,0.128]
[1761053289994,3.22498672,3886.7,3886.1,0.128]
[1761053290176,3.22498514,3886.7,3886.1,0.128]
[1761053290392,0.43,3886.6,3886.1,0.128]
[1761053291699,3.319,3886.8,3885.7,0.0143]
[1761053291913,3.319,3886.8,3886.4,0.128]
[1761053292103,4.5225232,3887.4,3885.7,0.04003538]
[1761053292104,0.6521,3887.4,3885.8,0.50688]
[1761053292418,0.558,3887.3,3886.7,0.128]
[1761053292590,0.128,3887.3,3886.7,0.128]
[1761053292797,0.2221,3887.4,3886.9,0.128]
[1761053293387,0.6521,3887.4,3886.9,0.128]
[1761053293686,0.2221,3887.4,3886.9,0.128]
[1761053294485,0.128,3887.6,3886.9,0.128]
[1761053295399,0.43,3887.7,3887.5,0.128]
[1761053296182,4.67006308,3888.1,3887.5,0.128]
[1761053296183,4.67008848,3888.1,3887.5,0.128]
[1761053296484,4.73004333,3888.0,3887.5,0.128]
[1761053296704,2.57220464,3887.8,3887.5,0.128]
[1761053297020,3.00213245,3887.9,3887.5,0.128]
[1761053297533,0.43,3887.8,3887.5,0.128]
[1761053298722,3.00216407,3887.8,3887.5,0.128]
[1761053299221,0.4355,3887.7,3887.5,0.128]
[1761053299921,0.001,3887.8,3887.5,0.128]
[1761053300320,0.4365,3887.8,3887.5,0.128]
[1761053301303,0.001,3887.8,3887.5,0.128]
[1761053303817,0.4355,3887.7,3887.5,0.128]
[1761053305342,0.001,3887.8,3887.5,0.128]
[1761053306152,0.001,3887.8,3887.6,0.02572281]
[1761053306317,0.001,3887.8,3887.7,0.128]
[1761053310765,0.001,3887.8,3887.6,6.71765641]
[1761053310947,0.001,3887.8,3887.7,0.67576805]
[1761053311153,0.001,3887.8,3887.7,0.70149019]
[1761053312562,0.001,3887.8,3887.7,0.67576805]
[1761053312968,0.001,3887.8,3887.4,0.0143]
[1761053313268,0.001,3887.8,3887.5,0.53260347]
[1761053313670,0.001,3887.8,3887.6,0.0143]
[1761053314939,0.001,3887.8,3887.7,0.02572214]
[1761053315265,0.001,3887.8,3887.6,0.52118]
[1761053315463,0.001,3887.8,3887.7,0.0143]
[1761053319130,0.001,3887.8,3887.7,0.54690214]
[1761053319868,0.001,3888.2,3887.8,3.21888]
[1761053320076,0.001,3888.6,3888.2,2.23488]
[1761053320362,0.001,3888.6,3888.4,0.50688]
[1761053320661,0.001,3888.6,3888.5,5.83085667]
[1761053320828,0.001,3888.6,3888.5,5.93313982]
[1761053321164,0.001,3888.6,3888.5,5.94743982]
[1761053325071,0.001,3888.6,3888.5,5.93313982]
[1761053326334,0.001,3888.6,3888.5,5.42625982]
[1761053326733,0.001,3888.6,3888.5,5.93313982]
[1761053327136,0.001,3888.6,3888.5,5.045]
[1761053327347,0.4659,3888.6,3888.5,3.317]
[1761053328370,0.001,3888.6,3888.5,3.317]
[1761053328771,0.001,3888.6,3888.5,3.82388]
[1761053329647,0.001,3888.6,3888.5,3.83818]
[1761053331173,0.001,3888.6,3888.5,5.56618]
[1761053332177,0.001,3890.2,3888.6,2.23488]
[1761053332361,0.001,3890.2,3889.3,2.23488]
[1761053332561,0.001,3890.2,3889.6,0.50688]
[1761053332761,0.001,3890.2,3889.4,3.3407109]
[1761053332762,0.001,3890.2,3889.8,2.23488]
[1761053332970,0.001,3890.2,3890.0,0.50688]
[1761053333145,0.001,3890.2,3890.0,0.53258694]
[1761053333542,0.001,3890.2,3890.0,0.50688]
[1761053334610,0.001,3890.2,3890.0,0.53258694]
[1761053334915,0.001,3890.2,3890.0,2.23488]
[1761053335208,0.001,3890.2,3890.1,1.061868]
[1761053337201,0.001,3890.2,3890.1,1.189868]
[1761053338234,0.001,3890.2,3890.1,1.21557428]
[1761053338515,0.001,3890.2,3890.1,1.22987428]
[1761053339283,0.001,3890.4,3890.2,0.50688]
[1761053339508,0.001,3890.4,3890.3,25.22698621]
[1761053339707,0.001,3890.5,3890.4,0.50688]
[1761053340276,0.001,3890.5,3890.4,2.24918]
[1761053341577,0.001,3890.5,3890.4,2.27488429]
[1761053342299,0.6936,3891.6,3890.4,2.27488429]
[1761053342300,0.2287,3891.6,3890.4,2.26058429]
[1761053342481,0.2287,3891.6,3890.9,21.59149383]
[1761053342675,0.2287,3891.6,3890.9,25.03249383]
[1761053345506,0.001,3892.5,3890.9,25.03249383]
[1761053345705,0.001,3892.5,3892.4,19.35661383]
[1761053346016,0.001,3892.5,3892.4,22.66861383]
[1761053346218,0.001,3892.5,3892.4,23.73048183]
[1761053346810,0.001,3892.5,3892.4,25.45848183]
[1761053347190,0.4329,3893.6,3893.1,19.86349383]
[1761053347390,0.2198,3893.4,3893.2,3.312]
[1761053347925,0.4329,3893.3,3893.2,3.312]
[1761053348284,0.2198,3893.4,3893.3,0.50688]
[1761053348488,2.78825726,3893.4,3893.2,3.312]
[1761053348726,0.71172573,3893.3,3893.2,3.312]
[1761053349028,0.71172573,3893.3,3893.0,3.312]
[1761053349190,0.4329,3893.2,3893.0,3.312]
[1761053349596,0.2287,3894.0,3893.0,3.312]
[1761053349790,0.2198,3893.3,3893.0,3.312]
[1761053350092,0.2198,3893.3,3893.0,3.6432]
[1761053350288,0.2287,3894.0,3893.1,0.50688]
[1761053350492,0.4329,3893.9,3893.1,0.53256647]
[1761053350789,0.4329,3893.9,3891.8,0.35819496]
[1761053350989,0.4329,3893.9,3891.0,2.2458144]
[1761053350990,0.4329,3893.9,3892.4,1.728]
[1761053351206,0.4329,3893.9,3892.6,0.50688]
[1761053351433,0.2198,3893.8,3892.7,3.311]
[1761053351593,2.56843249,3893.5,3892.8,3.311]
[1761053351792,2.56843249,3893.5,3892.1,1.728]
[1761053351793,2.56843249,3893.5,3892.9,3.311]
[1761053352018,3.00136152,3893.4,3893.0,3.311]
[1761053352222,0.98986128,3893.4,3893.0,3.311]
[1761053352418,2.56864709,3893.1,3893.0,3.311]
[1761053352634,0.4329,3893.3,3893.0,3.311]
[1761053352836,0.4329,3893.2,3893.0,3.311]
[1761053353397,3.001504,3893.2,3893.0,3.311]
[1761053353820,0.4329,3893.1,3891.2,19.08392382]
[1761053354025,0.4329,3893.1,3891.3,3.31]
[1761053354206,0.4329,3893.1,3891.4,1.728]
[1761053354523,2.56871307,3893.0,3891.5,0.50688]
[1761053354908,0.6527,3892.9,3891.4,2.23488]
[1761053355108,3.22149887,3892.9,3891.4,2.23488]
[1761053355328,3.00178412,3892.8,3891.4,2.23488]
[1761053355535,3.58079912,3892.8,3891.4,2.23488]
[1761053355833,2.56897703,3892.6,3892.5,0.128]
[1761053356230,3.00187703,3892.6,3892.5,0.128]
[1761053356432,3.00187703,3892.6,3892.0,3.31]
[1761053356433,2.56906405,3892.5,3892.0,3.31]
[1761053356598,3.00196405,3892.5,3892.2,0.128]
[1761053356799,0.4329,3892.4,3892.2,0.128]
[1761053357429,3.00201927,3892.4,3892.2,0.128]
[1761053357717,3.00201927,3892.4,3891.6,3.312]
[1761053357718,3.55912424,3892.4,3891.6,3.312]
[1761053357930,0.4329,3892.3,3891.6,3.312]
[1761053358113,0.2209,3891.7,3891.6,5.04]
[1761053358531,0.6632,3891.7,3891.6,5.04]
[1761053359010,0.2209,3891.7,3891.6,5.04]
[1761053359644,0.2209,3891.7,3891.6,5.544]
[1761053359849,0.4423,3892.3,3891.6,5.544]
[1761053360147,0.4423,3892.6,3891.6,5.544]
[1761053360355,0.4423,3892.8,3891.7,0.02569571]
[1761053360653,0.4423,3892.8,3891.7,2.26057571]
[1761053360908,0.4423,3892.8,3892.0,0.50688]
[1761053361020,0.4423,3892.8,3892.2,2.23488]
[1761053367634,0.4423,3892.8,3892.7,0.128]
[1761053367964,0.4423,3892.8,3892.7,3.436]
[1761053374060,0.4423,3892.8,3892.7,0.128]
[1761053375651,0.4433,3892.8,3892.7,0.128]
[1761053376790,0.001,3892.8,3892.7,0.128]
[1761053376944,0.4719,3892.8,3892.7,0.128]
[1761053381954,0.001,3892.8,3892.7,0.128]
[1761053384880,0.001,3892.8,3892.7,0.4714]
[1761053385695,0.001,3892.8,3892.7,0.128]
[1761053386480,0.4719,3892.8,3892.7,0.128]
[1761053387791,0.001,3892.8,3892.7,0.128]
[1761053387967,0.4719,3892.8,3892.7,0.128]
[1761053394389,0.001,3892.8,3892.7,0.128]
[1761053394598,0.4719,3892.8,3892.7,0.128]
[1761053398294,0.7980792,3892.8,3892.7,0.128]
[1761053398513,2.56892161,3892.7,3892.5,0.002]
[1761053398713,3.03981103,3892.7,3892.5,0.002]
[1761053398918,0.4709,3892.6,3892.5,0.002]
[1761053400231,0.001,3892.8,3892.5,0.002]
[1761053400531,2.56924104,3892.2,3892.1,0.002]
[1761053400733,2.56950511,3891.8,3891.7,0.002]
[1761053401030,0.2222,3891.9,3891.7,0.002]
[1761053401217,0.6921,3892.9,3891.7,0.002]
[1761053401218,0.4506,3892.1,3891.7,0.002]
[1761053401420,0.2212,3892.9,3892.0,8.0406632]
[1761053401619,0.6718,3892.9,3892.1,3.304]
[1761053402137,0.001,3893.2,3892.5,0.50688]
[1761053402336,0.001,3893.2,3892.6,3.32968977]
[1761053402497,0.001,3893.2,3892.7,2.23488]
[1761053402699,0.001,3893.2,3892.7,2.25518]
[1761053403230,0.001,3893.2,3892.7,2.23488]
[1761053403394,0.001,3893.2,3892.7,2.97429043]
[1761053403599,0.001,3893.2,3892.7,2.95399043]
[1761053404032,0.001,3893.2,3892.7,1.728]
[1761053404219,0.4516,3892.8,3892.0,1.728]
[1761053404529,0.4516,3892.8,3892.2,1.728]
[1761053404705,0.4516,3892.8,3892.3,8.0406632]
[1761053405217,0.4516,3892.8,3892.2,1.728]
[1761053405218,0.4516,3892.8,3892.1,3.304]
[1761053405396,2.56910694,3892.5,3891.6,3.306]
[1761053405602,2.82602744,3892.4,3891.6,3.306]
[1761053405810,0.25691069,3892.4,3891.7,8.0426632]
[1761053406014,0.4506,3892.3,3891.7,8.0426632]
[1761053406217,3.01979264,3892.3,3891.7,8.0426632]
[1761053406439,0.4506,3892.3,3891.7,8.0426632]
[1761053406817,0.2222,3891.8,3891.7,0.002]
[1761053407228,0.6728,3891.8,3891.7,0.002]
[1761053407827,0.2222,3892.1,3891.7,0.002]
[1761053408035,0.4506,3891.8,3891.7,0.002]
[1761053410048,0.6728,3892.1,3891.7,0.002]
[1761053410250,0.99699554,3892.1,3891.7,0.002]
[1761053410550,2.56983527,3891.3,3891.2,0.002]
[1761053410710,0.4506,3892.0,3891.2,0.002]
[1761053410910,0.4506,3891.9,3891.2,0.002]
[1761053411135,0.2222,3892.1,3891.2,0.002]
[1761053411458,0.4506,3892.0,3891.6,0.002]
[1761053411821,0.2222,3891.9,3891.6,0.002]
[1761053412227,0.4506,3891.8,3891.6,0.002]
[1761053412955,2.56957113,3891.7,3891.6,0.002]
[1761053413253,0.32423711,3891.7,3891.6,0.002]
[1761053413546,0.2222,3891.9,3891.6,0.002]
[1761053413755,0.6728,3891.9,3891.6,0.002]
[1761053414353,0.4506,3891.8,3891.6,0.002]
[1761053414651,3.02016219,3891.8,3891.6,0.002]
[1761053414854,0.4506,3891.8,3891.6,0.002]
[1761053415029,0.4506,3891.7,3891.6,0.002]
[1761053415230,0.2222,3891.9,3891.6,0.002]
[1761053415231,0.4506,3891.8,3891.6,0.002]
[1761053415550,0.2222,3891.9,3891.6,0.002]
[1761053415551,0.6728,3891.9,3891.6,0.002]
[1761053415739,0.4506,3891.8,3891.6,0.002]
[1761053416328,0.2222,3891.9,3891.6,0.002]
[1761053416653,0.4506,3891.8,3891.6,0.002]
[1761053417853,3.02011672,3891.8,3891.6,0.002]
[1761053418068,0.32423167,3891.7,3891.3,0.002]
[1761053418270,0.4555,3891.7,3891.3,0.002]
[1761053418958,2.57023157,3890.7,3888.1,0.002]
[1761053419161,7.60125355,3890.7,3888.2,0.0303]
[1761053419361,1.70441904,3890.6,3888.2,0.0303]
[1761053419659,2.5707488,3890.0,3888.2,0.0303]
[1761053419961,2.57098065,3889.6,3888.2,0.0303]
[1761053420160,1.16933994,3890.5,3888.2,0.0303]
[1761053420161,0.4555,3890.4,3888.2,0.0303]
[1761053420330,2.57080939,3889.9,3888.2,0.0303]
[1761053420530,2.57084512,3889.8,3888.2,0.0303]
[1761053420740,2.57063995,3890.1,3888.3,0.50688]
[1761053420942,2.57087073,3889.8,3889.2,0.128]
[1761053421146,2.69877905,3889.9,3889.2,0.128]
[1761053421348,0.4555,3889.8,3889.2,0.128]
[1761053421751,0.4555,3889.8,3888.1,0.002]
[1761053421939,0.128,3889.2,3888.6,0.128]
[1761053422270,0.128,3889.2,3888.1,0.002]
[1761053422271,2.57155347,3888.7,3888.1,0.002]
[1761053422467,2.57158358,3888.7,3888.4,0.128]
[1761053422671,0.4555,3888.6,3888.4,0.128]
[1761053423072,2.57168574,3888.5,3888.4,0.128]
[1761053423374,2.57168574,3888.5,3888.1,0.002]
[1761053423375,2.57168697,3888.5,3888.1,0.002]
[1761053423576,0.4555,3888.4,3888.1,0.002]
[1761053423872,3.02726263,3888.4,3888.1,0.002]
[1761053424086,0.4555,3888.4,3888.1,0.002]
[1761053424250,0.4555,3888.3,3888.1,0.002]
[1761053424845,3.02732106,3888.3,3888.1,0.002]
[1761053425046,0.4555,3888.3,3888.1,0.002]
[1761053425241,0.4555,3888.2,3888.1,0.002]
[1761053426258,3.34291681,3888.2,3888.1,0.002]
[1761053426457,0.128,3889.2,3888.1,0.002]
[1761053426671,0.4555,3889.0,3888.1,0.002]
[1761053429579,3.02686628,3889.0,3888.1,0.002]
[1761053429788,2.57153147,3888.8,3888.1,0.002]
[1761053429982,2.57168038,3888.6,3888.1,0.002]
[1761053430185,2.57169595,3888.5,3888.1,0.002]
[1761053430353,0.4555,3888.5,3888.1,0.002]
[1761053430551,0.4555,3888.4,3888.1,0.002]
[1761053431068,2.57181801,3888.3,3888.1,0.002]
[1761053431470,0.4747,3888.2,3888.1,0.002]
[1761053431675,0.4747,3888.4,3888.1,0.002]
[1761053431980,1.03649474,3888.4,3888.1,0.002]
[1761053432184,3.13355033,3888.4,3888.1,0.002]
[1761053432388,2.57188416,3888.2,3888.1,0.002]
[1761053432565,3.04653277,3888.3,3888.1,0.002]
[1761053432767,0.4747,3888.2,3888.1,0.002]
[1761053433674,0.131,3889.1,3888.1,0.002]
[1761053433881,1.728,3889.2,3888.1,0.002]
[1761053434075,2.2027,3889.3,3888.1,0.002]
[1761053434254,0.27879125,3889.6,3888.1,0.0580195]
[1761053434459,0.217,3889.7,3888.4,0.50688]
[1761053434681,0.6917,3890.6,3888.9,0.50688]
[1761053434884,0.6917,3890.6,3888.9,1.728]
[1761053435158,2.78729818,3890.6,3889.0,0.49688196]
[1761053435390,0.4747,3890.5,3889.0,0.49688196]
[1761053435556,0.4747,3890.5,3889.0,0.46658196]
[1761053435761,0.4747,3890.5,3889.0,0.49688196]
[1761053436103,3.04509334,3890.5,3888.9,1.728]
[1761053436310,3.04509334,3890.5,3888.9,1.7583]
[1761053436486,0.4747,3890.4,3890.3,0.128]
[1761053436887,3.04512977,3890.4,3890.3,0.128]
[1761053438311,2.57066791,3890.1,3888.4,0.1583]
[1761053438496,2.57113768,3889.4,3888.4,0.1583]
[1761053438696,2.11911778,3890.0,3888.4,0.1583]
[1761053438697,2.57117008,3889.3,3888.4,0.1583]
[1761053438898,2.57140788,3889.0,3888.1,0.1603]
[1761053439215,2.57153576,3888.8,3888.1,0.002]
[1761053439389,0.4747,3889.4,3888.1,0.002]